bitfinex-derivatives/quotes_ETHF0:USTF0_20241104
["timestamp","ask_amount","ask_price","bid_price","bid_amount"]
[1730755029135,0.41259,2425.8,2425.7,0.41258]
[1730755029431,41.21257,2425.9,2425.8,0.41258]
[1730755032034,0.41259,2425.8,2425.7,0.41259]
[1730755032435,41.21257,2425.9,2425.8,0.41258]
[1730755032937,0.4126,2425.7,2425.6,2.0067]
[1730755033433,0.4126,2425.8,2425.7,0.41259]
[1730755034830,40.8,2425.9,2425.6,1.5941]
[1730755035034,40.8,2425.9,2425.8,0.41258]
[1730755039136,40.8,2425.9,2425.8,3.63303836]
[1730755039339,40.8,2425.9,2425.8,7.75543836]
[1730755039535,3.6674,2426.3,2426.2,0.41251]
[1730755039536,4.07992,2426.3,2426.2,0.41251]
[1730755039738,0.87212,2426.3,2426.2,0.41251]
[1730755040234,41.2596,2426.3,2426.2,0.41251]
[1730755041032,41.6721,2426.3,2426.2,0.41251]
[1730755041241,41.2125,2426.3,2426.2,0.41251]
[1730755041536,40.8,2426.3,2426.2,3.63296836]
[1730755041740,40.8,2426.3,2426.2,4.79196836]
[1730755043746,40.8,2426.3,2426.2,8.91356836]
[1730755044138,0.5386,2426.7,2426.6,0.41244]
[1730755044445,0.4426,2426.7,2426.6,0.41244]
[1730755044634,41.2426,2426.7,2426.6,0.41244]
[1730755045231,40.8,2426.7,2426.6,0.41244]
[1730755045644,40.8,2426.7,2426.6,7.75369836]
[1730755045939,40.8,2426.7,2426.6,3.63289836]
[1730755046146,40.8,2426.7,2426.6,7.75369836]
[1730755047743,40.8,2426.7,2426.6,3.63289836]
[1730755048337,40.8,2426.7,2426.6,0.41244]
[1730755048739,41.21243,2426.7,2426.6,0.41244]
[1730755049639,40.8,2426.7,2426.4,1.157]
[1730755049846,0.41246,2426.5,2426.4,1.56947]
[1730755050051,0.87266,2426.6,2426.5,0.41246]
[1730755050741,41.2602,2426.6,2426.5,3.63291836]
[1730755051339,41.67264,2426.6,2426.5,0.41246]
[1730755051843,41.2602,2426.6,2426.5,0.41246]
[1730755052056,41.2602,2426.6,2426.5,1.156]
[1730755052341,41.67265,2426.6,2426.5,1.156]
[1730755052533,0.41248,2426.4,2426.3,0.84988]
[1730755052741,0.41248,2426.4,2426.3,2.00588]
[1730755052941,0.41248,2426.4,2426.3,0.4374]
[1730755053237,7.3294,2426.4,2426.0,1.156]
[1730755053438,0.4413,2426.3,2425.9,0.4442]
[1730755053643,0.41255,2426.0,2425.9,1.6002]
[1730755054842,0.41255,2426.0,2425.9,2.01276]
[1730755055043,0.41255,2426.0,2425.9,0.85676]
[1730755055250,3.2078,2426.1,2425.8,1.156]
[1730755055446,3.2078,2426.1,2425.7,2.01279]
[1730755055447,0.41258,2425.8,2425.7,2.01279]
[1730755055647,0.41258,2425.8,2425.7,1.56859]
[1730755056549,0.41261,2425.6,2425.5,0.86972]
[1730755056749,0.41261,2425.6,2425.5,1.6141]
[1730755056958,0.41266,2425.4,2425.3,1.56966]
[1730755057143,0.83284,2425.5,2425.4,0.41265]
[1730755057551,41.63284,2425.5,2425.4,0.41265]
[1730755057845,41.63284,2425.5,2425.3,1.157]
[1730755058042,41.63284,2425.5,2425.4,0.41265]
[1730755058247,0.41265,2425.4,2425.3,1.157]
[1730755058450,0.41265,2425.4,2425.3,1.56967]
[1730755058952,0.41265,2425.4,2425.3,0.41267]
[1730755059253,41.2202,2425.5,2425.2,1.157]
[1730755059450,0.41267,2425.3,2425.2,1.56967]
[1730755059644,41.2202,2425.5,2425.4,0.41265]
[1730755059951,41.63283,2425.5,2425.4,0.41265]
[1730755060145,41.2202,2425.5,2425.4,0.41265]
[1730755060344,41.63283,2425.5,2425.4,0.41265]
[1730755060543,0.41267,2425.3,2425.2,1.157]
[1730755060748,0.41271,2425.1,2424.8,0.096]
[1730755061055,7.331,2425.3,2424.9,0.41273]
[1730755061056,0.41272,2425.0,2424.9,0.41273]
[1730755061246,0.83782,2425.0,2424.9,0.41273]
[1730755061751,0.41273,2424.9,2424.8,0.41274]
[1730755061948,0.41277,2424.7,2424.6,1.07926068]
[1730755062551,0.41277,2424.7,2424.6,1.49204068]
[1730755063051,0.41275,2424.9,2424.7,0.41276]
[1730755063752,0.41275,2424.8,2424.7,0.41276]
[1730755064347,0.83782,2425.0,2424.9,0.41273]
[1730755065457,0.83099,2425.2,2425.1,0.4127]
[1730755065656,0.41271,2425.1,2425.0,0.41271]
[1730755065863,0.83099,2425.2,2425.1,0.4127]
[1730755066056,0.4183,2425.2,2425.1,0.4127]
[1730755068651,0.41267,2425.3,2425.2,0.41267]
[1730755071651,4.04065,2425.4,2425.3,0.41267]
[1730755071865,3.628,2425.4,2425.3,0.41267]
[1730755074563,3.2078,2425.4,2425.3,0.41267]
[1730755075359,3.62045,2425.4,2425.3,0.41267]
[1730755075567,3.2078,2425.4,2425.3,0.41267]
[1730755077463,41.21263,2425.5,2425.3,4.1232]
[1730755077464,40.8,2425.5,2425.3,4.1232]
[1730755077670,3.2078,2425.7,2425.4,0.41265]
[1730755077861,3.2078,2425.7,2425.6,0.41261]
[1730755078167,44.0078,2425.7,2425.6,0.41261]
[1730755078469,40.8,2425.7,2425.6,0.41261]
[1730755078855,41.2126,2425.7,2425.6,0.41261]
[1730755079968,40.8,2425.7,2425.6,0.41261]
[1730755081067,0.87236,2426.0,2425.9,0.41256]
[1730755081465,41.67236,2426.0,2425.9,0.41256]
[1730755081766,40.8,2426.0,2425.9,0.41256]
[1730755082371,41.21255,2426.0,2425.9,0.41256]
[1730755083067,40.8,2426.0,2425.9,0.41256]
[1730755083265,41.21255,2426.0,2425.9,0.41256]
[1730755083664,40.8,2426.0,2425.9,0.41256]
[1730755083876,41.21255,2426.0,2425.9,0.41256]
[1730755084469,40.8,2426.0,2425.9,0.41256]
[1730755086073,40.8,2426.0,2425.9,4.53496]
[1730755086270,40.8,2426.0,2425.9,8.91041836]
[1730755088074,40.8,2426.0,2425.9,5.68996]
[1730755090267,40.8,2426.0,2425.9,8.91041836]
[1730755092671,0.4324,2426.2,2425.9,8.49785836]
[1730755092871,0.4399,2426.5,2426.4,0.41248]
[1730755093277,41.2399,2426.5,2426.4,0.41248]
[1730755094383,41.2399,2426.5,2426.4,1.56748]
[1730755094570,41.2399,2426.5,2426.3,0.4379]
[1730755094768,0.41248,2426.4,2426.3,2.00538]
[1730755095476,41.65238,2426.5,2426.4,0.41248]
[1730755097274,45.3615,2426.5,2426.0,0.096]
[1730755097475,0.4125,2426.3,2426.2,0.4125]
[1730755097782,41.2399,2426.5,2426.0,0.437]
[1730755097783,0.41253,2426.1,2426.0,0.41253]
[1730755100780,0.41256,2426.0,2425.9,0.41254]
[1730755100987,0.83506,2426.0,2425.9,0.41254]
[1730755102383,0.4225,2426.0,2425.9,0.41254]
[1730755102585,0.83505,2426.0,2425.9,0.41254]
[1730755103784,0.41256,2425.9,2425.8,2.00456]
[1730755104885,0.41258,2425.8,2425.7,0.41258]
[1730755105089,3.6303,2426.0,2425.6,1.6147]
[1730755105385,0.4445,2425.7,2425.6,2.0273]
[1730755107192,0.4445,2425.7,2425.6,4.09275836]
[1730755108187,3.6303,2426.0,2425.6,3.68015836]
[1730755108392,0.4225,2426.0,2425.9,3.63301836]
[1730755108585,3.2078,2426.3,2426.2,0.41251]
[1730755108894,3.2078,2426.3,2426.2,1.56651]
[1730755110396,0.852,2426.4,2426.3,0.4125]
[1730755110601,3.2078,2426.6,2426.3,7.75455836]
[1730755110889,41.21244,2426.7,2426.6,0.41244]
[1730755111285,40.8,2426.7,2426.6,0.41244]
[1730755111590,41.21243,2426.7,2426.6,0.41244]
[1730755114592,40.8,2426.7,2426.6,0.41244]
[1730755115099,41.21243,2426.7,2426.6,0.41244]
[1730755117296,40.8,2426.7,2426.6,0.41244]
[1730755117499,40.8,2426.7,2426.6,4.53324]
[1730755118690,40.8,2426.7,2426.6,7.75369836]
[1730755122299,40.8,2426.7,2426.6,8.83238478]
[1730755123602,40.8,2426.7,2426.6,4.71158478]
[1730755124006,40.8,2426.7,2426.6,4.43362242]
[1730755124199,40.8,2426.7,2426.6,4.99661068]
[1730755124405,40.8,2426.7,2426.6,9.11741779]
[1730755126302,3.3038,2427.1,2427.0,0.41238]
[1730755126508,3.2078,2427.1,2427.0,1.56538]
[1730755126699,44.0078,2427.1,2427.0,1.56538]
[1730755128207,44.0078,2427.1,2427.0,1.153]
[1730755128409,44.42016,2427.1,2427.0,1.56538]
[1730755128599,44.42016,2427.1,2427.0,1.153]
[1730755129008,0.41238,2427.0,2426.9,1.153]
[1730755129504,4.53238,2427.0,2426.9,1.153]
[1730755129704,45.33238,2427.0,2426.9,1.153]
[1730755131908,0.41241,2426.8,2426.7,1.153]
[1730755132110,3.62021,2426.8,2426.7,1.153]
[1730755132503,44.42021,2426.8,2426.7,1.153]
[1730755133306,44.42021,2426.8,2426.5,0.41245]
[1730755133307,45.03884,2426.8,2426.5,1.153]
[1730755133511,0.8822,2426.7,2426.3,0.5148]
[1730755133703,0.41248,2426.5,2426.4,0.41247]
[1730755134105,0.8822,2426.7,2426.3,1.5718]
[1730755134409,0.8822,2426.7,2426.5,0.41245]
[1730755134410,0.41246,2426.6,2426.5,0.41245]
[1730755135412,0.8822,2426.7,2426.3,1.5718]
[1730755135413,5.12108,2426.7,2426.3,1.5718]
[1730755135614,0.41248,2426.4,2426.3,1.98427]
[1730755136212,0.41248,2426.4,2426.3,1.5718]
[1730755136515,0.41248,2426.4,2426.3,1.9843]
[1730755137301,0.41248,2426.4,2426.3,0.4125]
[1730755137506,0.41251,2426.2,2426.0,0.50853]
[1730755137706,1.28143,2426.1,2426.0,1.56555]
[1730755138914,11.41875836,2426.1,2425.7,0.096]
[1730755139214,1.0315,2425.7,2425.3,1.5870268]
[1730755139412,3.2078,2425.8,2425.1,1.152]
[1730755139413,0.41265,2425.4,2425.1,2.6725668]
[1730755139617,40.8,2425.5,2425.3,0.41267]
[1730755139810,40.8,2425.5,2425.4,0.41265]
[1730755140514,40.8,2425.5,2425.1,1.5942]
[1730755140721,40.8,2425.5,2425.4,0.41265]
[1730755142517,41.21263,2425.5,2425.4,0.41265]
[1730755144623,0.41265,2425.4,2425.3,1.56466]
[1730755145120,41.21264,2425.5,2425.3,1.56466]
[1730755145321,0.41264,2425.5,2425.3,1.152]
[1730755145519,0.41264,2425.5,2425.4,0.41265]
[1730755145721,41.6715,2425.6,2425.4,0.41265]
[1730755145921,0.41263,2425.5,2425.4,0.41265]
[1730755147521,0.41267,2425.3,2425.2,0.41268]
[1730755147725,7.331,2425.5,2424.9,1.56473]
[1730755147917,0.41272,2425.0,2424.9,0.41273]
[1730755148117,3.2078,2425.2,2424.8,4.81505836]
[1730755148322,5.21951836,2425.6,2425.0,3.22045836]
[1730755148323,3.2078,2425.5,2425.0,3.22045836]
[1730755148521,3.6478,2425.5,2425.4,0.41265]
[1730755148714,3.6478,2425.5,2425.4,1.56465]
[1730755148923,3.6478,2425.5,2425.4,2.00725]
[1730755151318,3.2078,2425.5,2425.4,2.00725]
[1730755156927,44.4204,2425.7,2425.6,0.41261]
[1730755157222,44.0078,2425.7,2425.6,0.41261]
[1730755157429,44.4204,2425.7,2425.6,0.41261]
[1730755158020,0.41263,2425.5,2425.4,0.4426]
[1730755158225,0.41261,2425.6,2425.3,1.152]
[1730755158429,0.41264,2425.5,2425.4,0.41264]
[1730755159335,0.41265,2425.4,2425.3,1.56465]
[1730755160124,44.0078,2425.7,2425.3,1.152]
[1730755160428,0.41265,2425.5,2425.4,0.41264]
[1730755161924,0.41263,2425.6,2425.5,0.41262]
[1730755162525,0.41265,2425.5,2425.4,0.41264]
[1730755162923,0.41264,2425.6,2425.5,0.41262]
[1730755163323,44.0078,2425.7,2425.3,1.152]
[1730755163524,0.41265,2425.5,2425.4,0.41264]
[1730755164730,45.03931,2425.7,2425.3,1.152]
[1730755164731,44.0078,2425.7,2425.3,1.152]
[1730755164926,0.41267,2425.3,2425.2,1.99407]
[1730755165422,0.41267,2425.3,2424.8,7.92373836]
[1730755165423,0.4215,2425.3,2424.9,0.096]
[1730755165623,0.4215,2425.3,2425.0,0.4127]
[1730755165624,0.41271,2425.1,2425.0,0.4127]
[1730755166026,0.41271,2425.1,2424.9,0.4499]
[1730755166027,0.83418,2425.3,2425.2,0.41268]
[1730755168937,0.4215,2425.3,2425.2,0.41268]
[1730755169130,0.83417,2425.3,2425.2,0.41268]
[1730755169329,0.4215,2425.3,2425.2,0.41268]
[1730755169831,0.83417,2425.3,2425.2,0.41268]
[1730755170336,0.4215,2425.3,2425.2,0.41268]
[1730755172234,0.83417,2425.3,2425.2,0.41268]
[1730755172428,0.83417,2425.3,2424.9,0.86262]
[1730755172429,0.41272,2425.0,2424.9,0.86262]
[1730755172937,0.4215,2425.3,2425.2,0.41268]
[1730755176444,0.4215,2425.3,2425.2,0.97633881]
[1730755177043,0.83417,2425.3,2425.2,0.97633881]
[1730755177346,0.83417,2425.3,2425.2,0.41268]
[1730755178440,0.4215,2425.3,2425.2,0.41268]
[1730755178636,0.4215,2425.3,2425.2,1.49229197]
[1730755179045,0.4446,2425.4,2425.3,0.41267]
[1730755179245,0.4446,2425.4,2425.3,0.97633867]
[1730755180038,0.85725,2425.4,2425.3,0.97633867]
[1730755181346,0.85725,2425.4,2425.3,0.41267]
[1730755182246,0.85725,2425.4,2425.3,0.9767314]
[1730755183138,0.4446,2425.4,2425.3,1.49267627]
[1730755184039,0.4446,2425.4,2425.3,1.92787627]
[1730755184237,0.85725,2425.4,2425.3,1.92787627]
[1730755184442,0.85725,2425.4,2425.3,2.83143292]
[1730755184644,0.85725,2425.4,2425.3,2.83210008]
[1730755185151,0.4355,2425.5,2425.3,2.41942597]
[1730755185343,0.4355,2425.5,2425.4,1.4933174]
[1730755185939,0.4355,2425.5,2425.4,2.39686303]
[1730755186137,0.84813,2425.5,2425.4,2.3968731]
[1730755186349,0.84813,2425.5,2425.4,2.39687274]
[1730755186843,0.4355,2425.5,2425.4,2.39687274]
[1730755187046,3.2078,2425.6,2425.5,0.41263]
[1730755187241,3.2078,2425.6,2425.5,2.39679428]
[1730755187442,2.5111,2425.6,2425.5,3.90506108]
[1730755187648,2.5111,2425.6,2425.5,8.02746108]
[1730755187842,2.5111,2425.6,2425.5,8.37758858]
[1730755188449,2.5111,2425.6,2425.5,7.99071031]
[1730755188651,2.5111,2425.6,2425.5,8.94269026]
[1730755188951,40.8,2425.7,2425.6,0.41261]
[1730755189155,40.8,2425.7,2425.6,3.47771108]
[1730755190541,0.096,2426.2,2425.6,11.83588966]
[1730755190744,0.839,2426.3,2426.2,0.41251]
[1730755190938,1.2515,2426.3,2426.2,0.41251]
[1730755191143,0.41253,2426.2,2426.1,0.41253]
[1730755191440,3.2078,2426.2,2425.7,1.60954878]
[1730755191646,3.2078,2426.2,2426.0,0.41254]
[1730755191647,0.41254,2426.1,2426.0,0.41254]
[1730755192447,0.41253,2426.1,2426.0,0.41253]
[1730755192948,0.41255,2426.0,2425.9,0.41256]
[1730755193250,41.2589,2426.0,2425.9,0.97668084]
[1730755193456,41.67145,2426.0,2425.9,0.97668084]
[1730755193754,41.67145,2426.0,2425.9,0.41256]
[1730755193953,41.2589,2426.0,2425.9,0.41256]
[1730755194349,41.2589,2426.0,2425.9,0.97656802]
[1730755194946,41.67145,2426.0,2425.9,0.97656802]
[1730755195147,41.67145,2426.0,2425.9,0.41256]
[1730755195447,41.2589,2426.0,2425.9,0.41256]
[1730755195853,41.67145,2426.0,2425.9,0.41256]
[1730755196049,41.2589,2426.0,2425.9,0.41256]
[1730755196456,41.67145,2426.0,2425.9,0.41256]
[1730755197958,41.2589,2426.0,2425.9,0.41256]
[1730755198461,41.67145,2426.0,2425.9,0.41256]
[1730755199052,0.41257,2425.9,2425.8,0.41257]
[1730755199250,0.41258,2425.8,2425.5,1.17694878]
[1730755199453,0.41263,2425.5,2425.4,1.56064]
[1730755199649,0.41263,2425.5,2425.4,1.56065]
[1730755200454,0.41268,2425.3,2425.2,0.41268]
[1730755200762,1.44439,2425.2,2424.7,1.58969878]
[1730755200977,0.41274,2424.9,2424.8,0.41274]
[1730755201449,46.24014,2424.9,2424.8,0.41274]
[1730755201650,46.68244,2424.9,2424.8,0.41274]
[1730755202359,42.55844,2424.9,2424.8,0.41274]
[1730755202553,0.41276,2424.8,2424.5,0.4128]
[1730755202854,0.41278,2424.7,2424.6,0.41277]
[1730755203260,0.41277,2424.7,2424.6,0.41278]
[1730755203463,0.41275,2424.8,2424.7,0.41276]
[1730755204569,4.124,2424.8,2424.4,0.4307]
[1730755204773,0.41279,2424.6,2424.4,0.4307]
[1730755204963,0.41279,2424.6,2424.4,0.8435]
[1730755205164,0.41279,2424.6,2424.5,0.4128]
[1730755205560,4.1248,2424.6,2424.5,0.4128]
[1730755206671,4.1248,2424.6,2424.1,0.096]
[1730755206672,7.34525836,2424.6,2424.1,0.096]
[1730755206867,3.2078,2424.7,2423.9,0.5601]
[1730755206868,3.22045836,2424.3,2423.9,0.5601]
[1730755207167,0.427,2424.2,2424.1,0.41287]
[1730755207667,0.83981,2424.5,2424.4,0.41282]
[1730755207875,0.41284,2424.3,2424.2,0.41285]
[1730755208067,1.26682,2424.5,2424.3,0.41283]
[1730755208269,0.41282,2424.4,2424.3,0.41283]
[1730755208468,4.53762,2424.4,2423.9,0.5601]
[1730755208666,0.41282,2424.4,2424.2,0.41284]
[1730755209170,0.41282,2424.4,2424.3,0.41284]
[1730755209677,4.53762,2424.4,2424.3,0.41284]
[1730755209870,4.1248,2424.4,2424.3,0.41284]
[1730755210065,4.53762,2424.4,2424.3,0.41284]
[1730755210274,4.1248,2424.4,2423.9,0.4641]
[1730755210470,0.41283,2424.4,2424.2,0.41285]
[1730755211078,0.41283,2424.4,2424.3,0.41284]
[1730755211476,4.53763,2424.4,2424.3,0.41284]
[1730755211973,4.1248,2424.4,2423.9,0.4641]
[1730755212174,0.41284,2424.3,2424.2,0.41285]
[1730755212374,0.41283,2424.4,2424.2,0.41285]
[1730755212574,0.41283,2424.4,2424.3,0.41284]
[1730755212892,4.53763,2424.4,2424.3,0.41284]
[1730755213180,4.53763,2424.4,2423.9,1.49635]
[1730755213378,4.53763,2424.4,2424.3,0.41284]
[1730755213379,0.41283,2424.4,2424.3,0.41284]
[1730755213574,0.41282,2424.4,2424.3,0.41283]
[1730755213770,4.1248,2424.4,2423.9,0.4641]
[1730755213974,3.67935836,2424.3,2423.9,0.4641]
[1730755214179,0.41286,2424.2,2424.1,0.41286]
[1730755215177,3.67935836,2424.3,2423.9,0.4641]
[1730755215481,3.67935836,2424.3,2424.2,0.41285]
[1730755215788,0.41282,2424.4,2424.3,0.41282]
[1730755216178,4.53762,2424.4,2424.3,0.41282]
[1730755216676,0.41282,2424.4,2424.3,0.41282]
[1730755217270,4.53762,2424.4,2424.3,0.41282]
[1730755217884,0.41285,2424.3,2424.2,0.41285]
[1730755220180,3.62063,2424.4,2424.3,0.41284]
[1730755220382,7.74543,2424.4,2424.3,0.41284]
[1730755221778,3.2078,2424.4,2424.3,0.41284]
[1730755223091,3.6545,2424.7,2424.6,0.41278]
[1730755223288,3.2078,2424.7,2424.6,0.41278]
[1730755223586,3.2078,2424.7,2424.6,4.53678]
[1730755224089,3.2078,2424.7,2424.6,0.41278]
[1730755224485,3.22045836,2424.8,2424.3,1.149]
[1730755224686,0.41282,2424.5,2424.4,0.41281]
[1730755225895,3.22045836,2424.6,2424.3,1.44081032]
[1730755226093,3.63323836,2424.6,2424.5,0.4128]
[1730755228485,3.22045836,2424.6,2424.5,0.4128]
[1730755229392,3.63323836,2424.6,2424.5,0.4128]
[1730755229587,0.41281,2424.5,2424.4,0.4128]
[1730755229786,3.63324836,2424.6,2424.5,0.4128]
[1730755229993,3.22045836,2424.6,2424.5,0.4128]
[1730755230292,3.63323836,2424.6,2424.5,0.4128]
[1730755230785,3.22045836,2424.6,2424.5,0.4128]
[1730755230991,3.63323836,2424.6,2424.5,0.4128]
[1730755231188,3.22045836,2424.6,2424.5,0.4128]
[1730755231387,4.04548,2424.7,2424.3,2.47290032]
[1730755231593,3.6327,2424.7,2424.6,0.41278]
[1730755233192,3.2078,2424.7,2424.6,0.41278]
[1730755236599,3.2078,2424.7,2424.4,1.03205]
[1730755236600,44.86724,2424.9,2424.8,0.41275]
[1730755237998,44.4545,2424.9,2424.8,0.41275]
[1730755238194,41.2467,2424.9,2424.8,0.41275]
[1730755241498,40.8,2424.9,2424.8,0.83645]
[1730755241699,3.62047,2425.3,2425.2,0.41268]
[1730755242000,3.2078,2425.3,2425.2,0.41268]
[1730755242193,44.42047,2425.3,2425.2,0.41268]
[1730755242388,40.8,2425.3,2425.2,0.41268]
[1730755242793,40.8,2425.3,2425.2,4.53588]
[1730755245499,0.4435,2425.6,2425.5,0.41263]
[1730755245896,0.41257,2425.9,2425.8,0.41256]
[1730755246400,41.66087,2425.9,2425.8,0.41256]
[1730755246996,41.2483,2425.9,2425.4,0.096]
[1730755247197,0.41262,2425.6,2425.5,0.41262]
[1730755247395,0.41265,2425.4,2425.3,0.84426]
[1730755247596,4.10375836,2425.5,2425.1,1.146]
[1730755247800,0.41269,2425.2,2425.1,0.41269]
[1730755248599,6.87655836,2425.3,2425.1,0.41269]
[1730755248797,0.41273,2425.0,2424.9,0.41272]
[1730755249600,41.21273,2425.0,2424.9,0.41272]
[1730755250105,41.21272,2425.0,2424.9,0.41272]
[1730755250307,0.41275,2424.9,2424.8,0.41274]
[1730755250606,0.85735,2424.9,2424.8,0.41274]
[1730755251706,0.4446,2424.9,2424.8,0.41274]
[1730755252605,0.85733,2424.9,2424.8,0.41274]
[1730755253505,0.4446,2424.9,2424.8,0.41274]
[1730755254603,0.85733,2424.9,2424.8,0.41274]
[1730755256105,7.78905836,2424.9,2424.3,1.17694878]
[1730755256400,3.2078,2424.7,2424.3,1.146]
[1730755256600,3.2078,2424.7,2424.3,0.41283]
[1730755256601,0.41283,2424.4,2424.3,0.41283]
[1730755256809,0.41284,2424.3,2424.2,0.83334]
[1730755257005,0.9006,2424.3,2424.2,0.83334]
[1730755257408,1.31344,2424.3,2424.2,0.83334]
[1730755257603,0.9006,2424.3,2424.2,0.83334]
[1730755264307,5.0254,2424.3,2423.8,0.096]
[1730755264514,0.4129,2424.0,2423.9,0.4129]
[1730755264708,3.22045836,2424.1,2423.7,3.6532]
[1730755265007,0.41289,2424.0,2423.9,0.41289]
[1730755265206,40.8,2424.0,2423.7,3.6532]
[1730755265512,41.21289,2424.0,2423.9,0.4129]
[1730755266310,40.8,2424.0,2423.9,0.4129]
[1730755266718,0.4554,2424.3,2424.2,0.41285]
[1730755267404,0.86825,2424.3,2424.2,0.41285]
[1730755267610,0.86825,2424.3,2424.1,0.85076]
[1730755267611,0.41285,2424.2,2424.1,0.85076]
[1730755267811,4.08869836,2424.3,2424.2,0.41285]
[1730755268907,0.41285,2424.2,2424.1,0.85076]
[1730755269404,4.08870836,2424.3,2424.2,0.41285]
[1730755270003,0.41287,2424.2,2424.1,0.41286]
[1730755271111,0.41287,2424.2,2423.8,1.4913]
[1730755271112,3.67585836,2424.3,2423.9,1.03226]
[1730755271309,4.08869836,2424.3,2424.2,0.41285]
[1730755271818,8.21349836,2424.3,2424.2,0.41285]
[1730755272619,7.80065836,2424.3,2424.2,0.41285]
[1730755273819,0.86824,2424.3,2424.2,0.41285]
[1730755277618,0.41287,2424.2,2424.1,0.41286]
[1730755278009,0.4554,2424.3,2423.8,3.6668]
[1730755278209,3.63335836,2424.0,2423.9,0.41288]
[1730755279419,0.4129,2423.9,2423.8,0.459]
[1730755279615,0.4129,2423.9,2423.6,0.4561]
[1730755279616,0.41296,2423.7,2423.6,0.4561]
[1730755279811,3.63341836,2423.7,2423.6,0.86906]
[1730755280713,3.63341836,2423.7,2423.6,0.4561]
[1730755281411,3.63341836,2423.7,2423.6,0.86906]
[1730755282516,7.34685836,2423.7,2423.2,0.096]
[1730755282817,0.41302,2423.2,2423.1,0.4395]
[1730755283016,3.63347836,2423.2,2423.1,0.4395]
[1730755283213,44.43347836,2423.2,2423.1,0.4395]
[1730755285421,0.41307,2422.9,2422.8,3.62088]
[1730755285625,3.63352836,2422.9,2422.8,3.2078]
[1730755286725,3.63352836,2422.9,2422.5,0.41313]
[1730755286726,0.41312,2422.7,2422.5,0.41313]
[1730755286927,1.2828,2422.8,2422.6,0.41313]
[1730755287129,1.2828,2422.8,2422.4,1.5938]
[1730755287130,0.8697,2422.8,2422.4,1.5938]
[1730755287325,0.8697,2422.8,2422.7,0.41311]
[1730755295235,1.28279,2422.8,2422.7,0.41311]
[1730755295438,0.41313,2422.6,2422.4,3.6576]
[1730755295736,4.50324836,2422.8,2422.4,0.4498]
[1730755295938,4.09015836,2422.8,2422.7,0.41311]
[1730755296935,0.8697,2422.8,2422.7,0.41311]
[1730755298035,1.28279,2422.8,2422.7,0.41311]
[1730755298235,0.41312,2422.7,2422.6,0.41312]
[1730755298643,4.50325836,2422.8,2422.7,0.41311]
[1730755300235,0.41313,2422.6,2422.5,0.41314]
[1730755300433,0.41317,2422.4,2422.3,0.41317]
[1730755300638,0.41321,2422.1,2422.0,0.83741]
[1730755300833,3.22045836,2422.2,2422.1,0.41321]
[1730755301036,0.4406,2422.3,2422.2,0.41319]
[1730755301037,0.85378,2422.3,2422.2,0.41319]
[1730755301445,0.4132,2422.2,2422.1,0.4132]
[1730755302048,41.2132,2422.2,2422.1,0.4132]
[1730755302440,40.8,2422.2,2422.1,0.4132]
[1730755307757,41.21319,2422.2,2422.1,0.4132]
[1730755308445,44.43364836,2422.2,2422.1,0.4132]
[1730755308752,0.41321,2422.1,2422.0,0.83742]
[1730755308947,1.26431,2422.1,2422.0,0.83742]
[1730755309146,0.8511,2422.1,2422.0,0.83742]
[1730755309349,1.26431,2422.1,2422.0,0.83742]
[1730755310348,0.8511,2422.1,2422.0,0.83742]
[1730755311055,1.26431,2422.1,2422.0,0.83742]
[1730755312148,1.26431,2422.1,2422.0,0.41322]
[1730755317559,0.8511,2422.1,2422.0,0.41322]
[1730755317759,1.26431,2422.1,2422.0,0.41322]
[1730755325971,0.41324,2422.0,2421.9,0.41323]
[1730755326362,0.41324,2422.0,2421.7,2.6189]
[1730755326363,0.41326,2421.9,2421.8,0.41325]
[1730755326571,3.63371836,2421.9,2421.8,0.41325]
[1730755326777,3.22045836,2421.9,2421.8,0.41325]
[1730755327170,0.41323,2422.0,2421.9,0.41324]
[1730755327974,0.41326,2421.8,2421.7,0.85697]
[1730755328175,3.63371836,2421.8,2421.5,0.4288]
[1730755328473,0.41331,2421.5,2421.4,0.8627]
[1730755328676,3.63376836,2421.5,2421.4,0.8627]
[1730755329778,3.63376836,2421.5,2421.4,0.4494]
[1730755330078,3.63376836,2421.5,2421.4,0.86273]
[1730755330868,3.22045836,2421.5,2421.4,0.86273]
[1730755331068,6.42825836,2421.7,2421.6,0.4133]
[1730755331269,3.22045836,2421.7,2421.6,3.6211]
[1730755331678,3.22045836,2421.9,2421.6,3.6211]
[1730755331872,3.22045836,2421.9,2421.8,0.41326]
[1730755333070,3.2078,2422.0,2421.6,3.6211]
[1730755333273,3.2078,2422.0,2421.9,0.41324]
[1730755333575,6.42825836,2422.0,2421.9,0.41324]
[1730755334780,6.84148836,2422.0,2421.9,0.41324]
[1730755334985,6.42825836,2422.0,2421.9,0.41324]
[1730755335579,6.42825836,2422.0,2421.9,1.30884]
[1730755335783,3.22045836,2422.0,2421.9,1.30884]
[1730755337382,3.63368836,2422.0,2421.9,0.85994]
[1730755337871,0.41324,2421.9,2421.8,0.87545]
[1730755338073,0.8932,2421.9,2421.8,0.87545]
[1730755338272,1.30644,2421.9,2421.8,0.87545]
[1730755339076,0.4543,2421.9,2421.8,0.87545]
[1730755340981,0.86754,2421.9,2421.8,0.87545]
[1730755341676,0.86754,2421.9,2421.8,0.4622]
[1730755341877,0.86754,2421.9,2421.8,0.87546]